bitfinex-derivatives/quotes_ETHF0:USTF0_20250518
["timestamp","ask_amount","ask_price","bid_price","bid_amount"]
[1747603171323,0.24477528,2413.2,2413.1,0.82841]
[1747603171630,0.24477528,2413.2,2413.1,20.3604176]
[1747603171829,0.24477528,2413.2,2413.1,26.7185176]
[1747603172028,13.25156964,2413.5,2413.1,25.8901076]
[1747603172327,13.25156964,2413.5,2413.3,4.03612]
[1747603172525,13.25156964,2413.5,2413.4,1.67518638]
[1747603172720,13.25156964,2413.5,2413.4,0.35248638]
[1747603173130,13.25156964,2413.5,2413.4,5.35248638]
[1747603173429,13.25156964,2413.5,2413.4,7.50348638]
[1747603173632,13.25156964,2413.5,2413.4,7.63294085]
[1747603174024,8.98206964,2413.5,2413.4,7.63294085]
[1747603174330,8.67055082,2413.5,2413.4,56.96444293]
[1747603174831,8.67055082,2413.5,2413.4,71.51692794]
[1747603175330,8.67055082,2413.5,2413.4,71.38548638]
[1747603175828,2.73347839,2413.5,2413.4,71.38548638]
[1747603176132,2.73347839,2413.5,2413.4,75.83079494]
[1747603177130,2.73347839,2413.5,2413.4,56.78879494]
[1747603177330,2.73347839,2413.5,2413.4,72.25638638]
[1747603177731,2.73347839,2413.5,2413.4,61.91008638]
[1747603178027,3.56174839,2413.5,2413.4,56.91008638]
[1747603178230,2.73347839,2413.5,2413.4,54.68038638]
[1747603178431,2.73347839,2413.5,2413.4,59.68038638]
[1747603179230,2.73347839,2413.5,2413.4,62.73838638]
[1747603179730,1.69846839,2413.5,2413.4,67.67499527]
[1747603180131,3.2078,2414.5,2413.4,66.84669527]
[1747603180325,4.56826312,2414.5,2414.1,3.2078]
[1747603180632,1.3147,2414.4,2414.2,9.87148638]
[1747603180836,1.3147,2414.4,2414.2,12.10839638]
[1747603181131,6.71093312,2414.4,2414.2,10.9279]
[1747603181333,6.71093312,2414.4,2414.2,11.75593]
[1747603181629,0.828,2414.3,2414.2,9.518]
[1747603181824,2.3124,2414.3,2414.2,9.518]
[1747603182128,3.1404,2414.3,2413.9,4.5412]
[1747603182330,3.1404,2414.3,2414.0,9.518]
[1747603182530,6.88066312,2414.3,2414.0,9.8824137]
[1747603182736,7.70867312,2414.3,2414.0,11.2158137]
[1747603182938,3.2078,2414.2,2414.0,0.3644137]
[1747603183240,2.13916,2414.1,2413.7,0.8282]
[1747603183424,1.3111,2414.1,2413.6,14.0592]
[1747603183629,6.70744312,2414.1,2413.6,14.88742]
[1747603183831,6.70744312,2414.1,2413.7,9.518]
[1747603184135,6.70744312,2414.1,2413.7,9.8825802]
[1747603184136,5.87936312,2414.1,2413.7,9.8825802]
[1747603184336,0.82812,2414.0,2413.7,9.518]
[1747603184538,1.3111,2413.9,2413.6,3.2078]
[1747603184736,0.9357,2413.8,2413.7,9.517]
[1747603185132,0.9357,2413.8,2413.4,41.782]
[1747603185338,1.3688,2413.7,2413.5,9.88218679]
[1747603186340,5.93706312,2413.7,2413.5,9.88218679]
[1747603186532,0.9939,2413.6,2413.5,9.88218679]
[1747603186732,2.3627,2413.6,2413.5,10.34527]
[1747603187033,1.3688,2413.6,2413.5,10.71060219]
[1747603187438,1.3688,2413.6,2413.5,9.88233219]
[1747603187640,1.3688,2413.6,2413.5,10.71060219]
[1747603189035,1.3688,2413.6,2413.5,9.88233219]
[1747603189235,1.3688,2413.6,2413.5,10.71060219]
[1747603190342,1.3688,2413.6,2413.5,13.76860219]
[1747603190539,1.3688,2413.6,2413.5,3.42333219]
[1747603190736,1.3688,2413.6,2413.5,12.94033219]
[1747603191443,1.3688,2413.6,2413.5,3.42333219]
[1747603191645,1.3688,2413.6,2413.5,12.94033219]
[1747603192239,1.3688,2413.6,2413.5,13.76860219]
[1747603192541,1.3688,2413.6,2413.5,12.94033219]
[1747603192744,5.93706312,2413.6,2413.5,12.94033219]
[1747603193241,5.93706312,2413.6,2413.5,9.88233219]
[1747603193945,5.93706312,2413.6,2413.5,0.36533219]
[1747603194143,6.76530312,2413.6,2413.5,0.36533219]
[1747603194744,5.93706312,2413.6,2413.5,0.36533219]
[1747603194942,15.44306312,2413.6,2413.5,0.36533219]
[1747603196343,15.44306312,2413.6,2413.5,1.84132061]
[1747603196539,16.27130312,2413.6,2413.5,1.84132061]
[1747603197045,21.27130312,2413.6,2413.5,0.33622061]
[1747603197245,21.27130312,2413.6,2413.3,3.2078]
[1747603197246,23.50106312,2413.6,2413.3,3.2078]
[1747603197548,19.32932312,2413.6,2413.3,3.2078]
[1747603197842,2.07068,2413.5,2413.0,0.64235914]
[1747603198045,3.2078,2413.2,2412.7,3.20086358]
[1747603198346,0.82845,2413.0,2412.7,3.20086358]
[1747603198547,1.3328,2412.9,2412.7,3.20086358]
[1747603198752,0.82851,2412.8,2412.7,3.20086358]
[1747603199045,0.82857,2412.7,2412.0,5.46907]
[1747603199246,0.82858,2412.6,2412.1,0.12953513]
[1747603199449,1.3328,2412.5,2412.2,0.12953847]
[1747603199645,1.3328,2412.5,2412.3,0.12953847]
[1747603199946,1.3328,2412.5,2412.0,9.519]
[1747603200253,4.3908,2412.5,2412.3,3.2078]
[1747603200543,3.058,2412.5,2412.4,10.47718775]
[1747603200747,3.058,2412.5,2412.4,12.73948775]
[1747603201149,1.3163,2412.9,2412.7,0.82854]
[1747603201341,1.3163,2412.9,2412.8,0.95801857]
[1747603201547,1.3163,2412.9,2412.8,0.12950857]
[1747603202246,4.3743,2412.9,2412.8,0.12950857]
[1747603203250,4.3743,2412.9,2412.8,0.12950365]
[1747603205050,4.3743,2412.9,2412.8,0.12950727]
[1747603205843,4.46648003,2412.9,2412.8,0.12950727]
[1747603206348,3.15018003,2412.9,2412.8,0.95801727]
[1747603206546,3.15018003,2412.9,2412.8,3.24591727]
[1747603206845,3.15018003,2412.9,2412.8,12.75091727]
[1747603207050,3.15018003,2412.9,2412.8,12.75089896]
[1747603207348,0.09218003,2412.9,2412.8,12.75089896]
[1747603209049,0.09218003,2412.9,2412.8,12.75089843]
[1747603209449,0.09218003,2412.9,2412.8,13.10643989]
[1747603210046,0.09218003,2412.9,2412.8,14.52602346]
[1747603210649,0.09218003,2412.9,2412.8,14.39653503]
[1747603210841,0.09218003,2412.9,2412.8,14.52601972]
[1747603212544,0.09218003,2412.9,2412.8,14.39653503]
[1747603212742,0.09218003,2412.9,2412.8,13.10644281]
[1747603216555,0.09218003,2412.9,2412.8,13.10643884]
[1747603217055,0.09218003,2412.9,2412.8,13.10543884]
[1747603220856,0.09218003,2412.9,2412.8,1.86862884]
[1747603221160,0.09218003,2412.9,2412.8,9.98902884]
[1747603221362,0.09218003,2412.9,2412.8,0.48502884]
[1747603221561,0.09218003,2412.9,2412.8,9.98902884]
[1747603221859,1.44638003,2412.9,2412.8,10.81753884]
[1747603222254,1.44638003,2412.9,2412.8,10.81754997]
[1747603222760,1.44638003,2412.9,2412.8,0.48503997]
[1747603223258,4.50438003,2412.9,2412.8,0.48503997]
[1747603223555,5.33286003,2412.9,2412.8,0.48503997]
[1747603224760,10.33286003,2412.9,2412.8,0.48503997]
[1747603225160,10.33286003,2412.9,2412.8,0.35554146]
[1747603226257,9.50438003,2412.9,2412.8,0.35554146]
[1747603226467,10.33286003,2412.9,2412.8,0.35554146]
[1747603226659,9.50438003,2412.9,2412.8,0.35554146]
[1747603226865,10.33286003,2412.9,2412.8,0.35554146]
[1747603227059,9.50438003,2412.9,2412.8,0.35554146]
[1747603228467,4.50438003,2412.9,2412.8,1.31356668]
[1747603228662,4.50438003,2412.9,2412.8,4.39185146]
[1747603228863,4.50438003,2412.9,2412.8,4.52135927]
[1747603229167,3.15018003,2412.9,2412.8,4.52135927]
[1747603229364,3.15018003,2412.9,2412.8,5.93345927]
[1747603230065,3.15018003,2412.9,2412.8,5.93344523]
[1747603230264,0.09218003,2412.9,2412.8,5.93344523]
[1747603231056,0.09967135,2412.9,2412.8,5.93344523]
[1747603232563,0.09967135,2412.9,2412.8,7.36196205]
[1747603233866,0.09967135,2412.9,2412.8,7.36195214]
[1747603235169,1.3299,2413.2,2413.1,0.82841]
[1747603235367,1.3299,2413.2,2413.1,14.00323532]
[1747603235567,1.3299,2413.2,2413.1,14.00323051]
[1747603237270,1.3299,2413.2,2413.1,14.91763051]
[1747603237459,1.3299,2413.2,2413.1,14.78815146]
[1747603237667,1.3299,2413.2,2413.1,14.91763]
[1747603238272,3.2078,2414.1,2413.1,32.70615]
[1747603238572,1.3648,2413.6,2413.5,0.82827]
[1747603238773,1.3648,2413.6,2413.5,1.31329]
[1747603239371,1.3648,2413.6,2413.5,1.3132651]
[1747603240566,1.3648,2413.6,2413.5,2.6552651]
[1747603240775,1.3648,2413.6,2413.5,10.7952651]
[1747603241376,3.058,2414.4,2413.5,9.96699992]
[1747603241568,1.3171,2414.1,2414.0,0.8281]
[1747603241769,1.3171,2414.1,2414.0,0.12945846]
[1747603242273,4.3751,2414.1,2414.0,0.48499992]
[1747603242463,5.20316,2414.1,2414.0,0.48499992]
[1747603242672,5.20316,2414.1,2414.0,0.35554146]
[1747603243169,4.3751,2414.1,2414.0,0.35554146]
[1747603244174,2.0437483,2414.7,2414.0,13.17379151]
[1747603244473,2.0437483,2414.7,2414.6,4.03569]
[1747603244670,2.0437483,2414.7,2414.6,0.35554146]
[1747603244873,2.0437483,2414.7,2414.6,1.18343146]
[1747603245073,5.1017483,2414.7,2414.6,1.18343146]
[1747603245476,3.058,2414.7,2414.6,1.18343146]
[1747603245671,3.058,2414.7,2414.6,0.35554146]
[1747603245867,3.058,2414.7,2414.6,1.18343146]
[1747603246772,3.058,2414.7,2414.6,4.39123146]
[1747603251783,3.058,2414.7,2414.6,3.56334146]
[1747603251982,3.9191,2414.7,2414.6,4.39123146]
[1747603253485,3.058,2414.7,2414.6,4.39123146]
[1747603253980,3.058,2414.7,2414.6,3.56334146]
[1747603254480,3.058,2414.7,2414.6,4.39123146]
[1747603256777,3.058,2414.7,2413.3,1.6097738]
[1747603256778,11.2658,2414.7,2413.3,1.6097738]
[1747603257083,3.2078,2413.5,2413.3,1.6097738]
[1747603257386,1.79,2413.4,2413.3,1.6097738]
[1747603257881,11.303,2413.4,2413.3,3.6799838]
[1747603258081,4.848,2413.4,2413.3,2.07021]
[1747603258479,6.2665,2413.4,2413.3,2.07021]
[1747603258879,7.09483,2413.4,2413.1,9.477]
[1747603259078,3.2085,2413.4,2413.1,2.07021]
[1747603259279,3.2078,2413.2,2413.1,2.07021]
[1747603260280,6.2658,2413.2,2413.1,2.07021]
[1747603260583,8.51268,2413.2,2412.8,10.3633]
[1747603260781,7.6843,2413.2,2412.9,2.19969583]
[1747603261087,7.6843,2413.2,2413.1,2.07021]
[1747603261684,4.4765,2413.2,2413.1,2.07021]
[1747603262687,4.4765,2413.2,2413.1,2.19969186]
[1747603263079,4.4765,2413.2,2413.1,2.19969113]
[1747603263279,4.4765,2413.2,2413.1,2.19969152]
[1747603263480,4.4765,2413.2,2413.1,2.07021]
[1747603265095,1.4185,2413.2,2413.1,2.19969237]
[1747603265986,1.4185,2413.2,2413.1,3.02810237]
[1747603267084,4.4765,2413.2,2413.1,2.19969237]
[1747603267388,4.4765,2413.2,2413.1,3.02810237]
[1747603267890,4.4765,2413.2,2413.1,3.02809977]
[1747603268980,4.4765,2413.2,2413.1,3.38332075]
[1747603269182,1.4185,2413.2,2413.1,3.38332075]
[1747603269591,2.24687,2413.2,2413.1,2.55491075]
[1747603269784,1.4185,2413.2,2413.1,3.38332075]
[1747603269983,1.4185,2413.2,2413.1,2.55491075]
[1747603270782,2.24687,2413.2,2413.1,2.42543098]
[1747603271088,2.24687,2413.2,2413.1,0.35522098]
[1747603271288,8.51267,2413.2,2413.1,0.35522098]
[1747603272692,12.6843,2413.2,2412.6,3.2078]
[1747603272985,3.2078,2412.9,2412.5,10.514]
[1747603273286,12.4056,2412.8,2412.5,0.999]
[1747603273486,4.03638,2412.6,2412.5,0.999]
[1747603273990,0.82875,2412.1,2412.0,1.20537495]
[1747603274788,2.93165,2412.1,2412.0,1.20537495]
[1747603275093,7.93165,2412.1,2412.0,1.20537495]
[1747603275287,0.82882,2411.9,2411.8,1.6097738]
[1747603275486,4.03662,2411.9,2411.8,1.6097738]
[1747603275687,9.03662,2411.9,2411.8,1.6097738]
[1747603275889,9.03662,2411.9,2411.7,2.40799643]
[1747603275890,10.27989,2411.9,2411.2,5.65209992]
[1747603276091,4.03683,2411.3,2411.2,5.65209992]
[1747603276299,13.50383,2411.3,2410.6,4.15048762]
[1747603276592,12.6748,2411.3,2410.9,2.07021]
[1747603276787,9.856,2411.8,2411.0,2.07021]
[1747603276993,3.058,2411.9,2411.0,2.07021]
[1747603276994,3.2078,2411.6,2411.0,2.07021]
[1747603277182,3.2078,2411.3,2411.0,2.07021]
[1747603277387,9.456,2411.2,2410.8,1.35499227]
[1747603277687,3.2078,2410.9,2410.8,1.35499227]
[1747603278084,12.7498,2410.9,2410.8,3.42520227]
[1747603278290,3.2078,2410.9,2410.8,2.89941]
[1747603278998,3.2078,2411.2,2410.8,2.07021]
[1747603279190,3.2078,2411.2,2411.1,2.07021]
[1747603279383,12.7528,2411.2,2411.1,2.07021]
[1747603280293,3.2078,2411.2,2411.1,2.07021]
[1747603280499,0.8046,2411.7,2411.1,2.07021]
[1747603280693,14.095,2411.8,2411.7,0.82889]
[1747603280995,14.095,2411.8,2411.7,2.8991]
[1747603280996,3.2078,2411.8,2411.7,2.8991]
[1747603281592,9.538,2412.0,2411.8,0.82883]
[1747603281797,9.529,2412.0,2411.8,3.42131]
[1747603282001,9.529,2412.0,2411.9,2.89901]
[1747603282190,2.2148,2412.2,2411.9,4.3235]
[1747603282390,1.3532,2412.2,2412.1,2.07021]
[1747603282993,1.3532,2412.2,2412.1,2.89896]
[1747603284297,3.2078,2412.3,2412.2,0.82872]
[1747603284497,3.2078,2412.3,2412.2,4.32343]
[1747603284798,3.2078,2412.3,2412.2,4.67599997]
[1747603285300,1.307,2412.4,2412.2,0.35256997]
[1747603285593,3.2078,2412.3,2412.2,0.35256997]
[1747603285794,4.03648,2412.3,2412.2,0.35256997]
[1747603286795,9.03648,2412.3,2412.2,0.35256997]
[1747603288197,12.09448,2412.3,2412.2,0.35256997]
[1747603289004,12.09448,2412.3,2412.2,0.35378276]
[1747603290907,12.09448,2412.3,2411.7,2.12666]
[1747603291105,10.3572,2412.5,2411.8,2.07021]
[1747603291106,3.2078,2412.0,2411.8,2.07021]
[1747603291306,10.8442,2411.9,2411.8,2.07021]
[1747603291499,10.8442,2411.9,2411.8,2.42425283]
[1747603292906,1.3822,2411.9,2411.8,2.42425283]
[1747603293206,10.8442,2411.9,2411.8,2.42425283]
[1747603294308,10.8442,2411.9,2411.8,0.35404283]
[1747603295206,11.67302,2411.9,2411.8,0.35404283]
[1747603296808,16.67302,2411.9,2411.8,0.35404283]
[1747603297001,6.3822,2411.9,2411.0,0.8461]
[1747603297207,3.2078,2411.4,2411.2,2.07021]
[1747603297508,10.8275,2411.3,2411.2,2.07021]
[1747603297708,10.8275,2411.3,2411.2,2.19979772]
[1747603297906,10.8275,2411.3,2411.0,0.8461]
[1747603298109,11.65654,2411.3,2411.2,2.07021]
[1747603298306,14.86434,2411.3,2411.1,2.07021]
[1747603298813,0.82908,2411.2,2411.0,0.8461]
[1747603299013,0.82908,2411.2,2411.1,2.07021]
[1747603299208,9.462,2411.2,2411.1,2.07021]
[1747603299410,9.462,2411.2,2410.9,2.17695]
[1747603299610,9.462,2411.2,2411.1,2.07021]
[1747603300012,9.462,2411.2,2410.9,1.3478]
[1747603300208,3.2078,2411.0,2410.8,0.82919]
[1747603300414,3.2078,2411.0,2410.9,2.19981936]
[1747603300613,3.2078,2411.0,2410.9,3.61071936]
[1747603301623,12.6698,2411.0,2410.9,3.61071936]
[1747603302214,12.6698,2411.0,2410.9,0.12960659]
[1747603302619,13.49893,2411.0,2410.9,0.12960659]
[1747603303219,0.82917,2410.9,2410.6,0.8582]
[1747603303420,13.49894,2411.0,2410.7,2.19982955]
[1747603303620,13.49894,2411.0,2410.7,2.07021]
[1747603303922,0.82917,2410.9,2410.7,2.07021]
[1747603304213,12.6698,2411.0,2410.6,0.8582]
[1747603304522,13.49895,2411.0,2410.7,2.19983044]
[1747603304820,13.49895,2411.0,2410.6,2.92841]
[1747603305012,12.6698,2411.0,2410.7,0.12962179]
[1747603305214,12.6698,2411.0,2410.6,2.07021]
[1747603305414,0.9425,2410.9,2410.7,0.12962099]
[1747603305609,3.2078,2411.0,2410.6,2.07021]
[1747603305819,3.2078,2411.7,2411.0,2.07283]
[1747603306019,3.2078,2411.7,2411.6,2.89913]
[1747603306220,3.2078,2411.7,2411.6,3.02870507]
[1747603306914,3.2078,2411.7,2411.6,4.32890507]
[1747603308026,3.2078,2411.7,2411.6,4.32889131]
[1747603309437,3.2078,2411.7,2411.6,4.67777415]
[1747603309931,3.2078,2411.7,2411.6,4.67777406]
[1747603310236,3.2078,2411.7,2411.6,3.84885406]
[1747603310436,3.2078,2411.7,2411.6,4.67777406]
[1747603310738,3.2078,2411.7,2411.6,3.84885406]
[1747603310938,3.2078,2411.7,2411.6,4.67777406]
[1747603311139,3.2078,2411.7,2411.6,3.84885406]
[1747603311536,3.2078,2411.7,2411.6,4.67777406]
[1747603311739,3.2078,2411.7,2411.6,4.67777759]
[1747603312035,9.461,2411.8,2411.6,4.67777759]
[1747603312240,9.461,2411.8,2411.7,2.19977475]
[1747603312435,9.461,2411.8,2411.7,3.02866475]
[1747603312635,9.461,2411.8,2411.7,2.54865759]
[1747603313644,9.461,2411.9,2411.7,3.37752709]
[1747603313846,9.461,2411.9,2411.8,2.19977425]
[1747603314142,9.461,2411.9,2411.8,3.94025709]
[1747603314341,9.461,2411.9,2411.8,1.87004709]
[1747603314844,9.461,2411.9,2411.8,1.8700468]
[1747603315042,9.461,2411.9,2411.8,1.74048284]
[1747603315245,9.461,2411.9,2411.8,1.87004714]
[1747603315444,9.461,2411.9,2411.8,1.87004578]
[1747603316244,9.461,2411.9,2411.8,1.8700458]
[1747603316444,9.461,2411.9,2411.8,1.74048284]
[1747603317741,3.2078,2412.0,2411.9,0.82882]
[1747603317937,3.2078,2412.4,2412.3,0.82868]
[1747603318140,3.2078,2412.4,2412.3,0.95821659]
[1747603318338,3.2078,2412.4,2412.3,3.02842659]
[1747603318537,3.2078,2412.4,2412.3,3.37730943]
[1747603318940,3.2078,2412.4,2412.3,12.84030943]
[1747603319139,4.6107,2412.8,2412.3,12.84030943]
[1747603319340,3.2078,2412.8,2412.7,2.89875]
[1747603319538,3.2078,2412.8,2412.7,12.84014232]
[1747603319942,9.457,2413.1,2412.7,12.01160232]
[1747603320247,9.457,2413.1,2413.0,2.89864]
[1747603320444,3.2078,2413.3,2413.2,0.82837]
[1747603320646,3.2078,2413.3,2413.2,3.02805975]
[1747603321045,3.2078,2413.3,2413.2,4.31944259]
[1747603321845,3.2078,2413.3,2413.2,9.31944259]
[1747603322039,2.0437483,2413.8,2413.7,0.8282]
[1747603322243,2.0437483,2413.8,2413.7,12.48985201]
[1747603322549,9.456,2414.3,2413.9,0.82811]
[1747603322850,10.8071,2414.3,2414.2,2.07021]
[1747603323047,1.3531,2414.3,2414.2,2.07021]
[1747603323247,4.4111,2414.3,2414.2,2.07021]
[1747603323447,3.058,2414.3,2414.2,2.07021]
[1747603323645,3.058,2414.3,2414.2,3.45891]
[1747603324147,5.2515483,2414.5,2414.2,3.45891]
[1747603324354,5.2515483,2414.5,2414.4,2.07021]
[1747603324551,5.2515483,2414.5,2414.4,2.89817]
[1747603324753,5.2515483,2414.5,2414.4,4.20127]
[1747603325054,2.0437483,2414.5,2414.4,4.20127]
[1747603325350,2.0437483,2414.5,2414.4,4.54604309]
[1747603325657,2.0437483,2414.5,2414.4,9.54604309]
[1747603327345,1.3613,2415.0,2414.4,8.71808309]
[1747603327546,1.3613,2415.0,2414.9,2.07021]
[1747603327949,1.3613,2415.0,2414.8,2.20352]
[1747603328151,3.2078,2415.1,2414.9,11.52221]
[1747603328452,10.8498,2415.3,2415.0,4.27366]
[1747603328657,10.8498,2415.3,2415.1,2.07021]
[1747603329046,1.3998,2415.3,2415.0,1.3757]
[1747603329247,4.4578,2415.3,2415.2,2.07021]
[1747603329653,4.4578,2415.3,2415.1,0.82772]
[1747603329845,4.4578,2415.3,2415.2,3.44591]
[1747603330151,1.3998,2415.3,2415.2,4.2736]
[1747603330355,1.3998,2415.3,2415.2,3.44591]
[1747603330653,3.2078,2415.5,2415.2,3.44591]
[1747603330849,1.3648,2415.4,2415.2,3.44591]
[1747603331051,1.3648,2415.4,2415.2,2.20336]
[1747603331244,2.19244,2415.4,2415.2,1.3757]
[1747603331453,1.3648,2415.4,2415.3,2.07021]
[1747603331952,1.3648,2415.4,2414.8,3.2078]
[1747603332151,0.82765,2415.3,2414.8,3.2078]
[1747603332346,1.3648,2415.2,2415.0,2.07021]
[1747603332853,1.3648,2415.2,2415.0,0.82774]
[1747603333555,1.3648,2415.2,2415.1,0.82772]
[1747603333755,1.3648,2415.2,2415.0,2.89796]
[1747603333954,1.3648,2415.2,2415.1,2.89793]
[1747603334262,3.058,2415.2,2415.1,2.89793]
[1747603335156,1.3658,2415.4,2415.2,0.82767]
[1747603335356,1.3658,2415.4,2415.3,2.07021]
[1747603335655,1.3658,2415.4,2415.3,2.89786]
[1747603336357,4.4238,2415.4,2415.3,2.89786]
[1747603338046,3.2078,2415.8,2415.3,20.55066]
[1747603338358,1.297,2416.3,2415.7,2.07021]
[1747603338553,1.297,2416.3,2416.2,2.07021]
[1747603338748,1.297,2416.3,2415.9,5.27801]
[1747603339255,13.794,2416.3,2416.0,0.82739]
[1747603339451,4.355,2416.3,2416.1,2.07021]
[1747603339658,4.355,2416.3,2416.2,2.07021]
[1747603340251,4.355,2416.3,2416.1,0.82737]
[1747603340453,4.355,2416.3,2416.2,2.07021]
[1747603341358,4.355,2416.3,2416.2,2.89755]
[1747603341558,4.355,2416.3,2416.2,14.72201]
[1747603341758,4.355,2416.3,2416.2,11.51421]
[1747603341955,3.058,2416.3,2416.2,12.68330021]
[1747603342155,1.3062,2416.4,2416.2,12.68330021]
[1747603342355,1.3062,2416.4,2416.2,13.82089021]
[1747603342662,2.13348,2416.4,2416.3,2.07021]
[1747603342860,0.82734,2416.2,2416.1,9.444]
[1747603343056,9.437,2416.3,2415.9,5.27801]
[1747603343259,0.82742,2416.0,2415.8,9.442]
[1747603343456,1.3661,2415.9,2415.6,3.2078]
[1747603343650,0.82748,2415.8,2415.3,10.26965]
[1747603343856,1.3661,2415.7,2415.4,2.07021]
[1747603344159,1.3661,2415.7,2415.5,2.41270824]
[1747603344360,1.3661,2415.7,2415.6,0.34249824]
[1747603344662,2.19362,2415.7,2415.6,0.34249824]
[1747603344862,0.9028,2416.3,2415.6,0.34249824]
[1747603345055,1.3661,2415.7,2415.6,0.34249824]
[1747603347262,4.4241,2415.7,2415.6,0.34249824]
[1747603347767,5.25162,2415.7,2415.6,0.34249824]
[1747603348261,10.25162,2415.7,2415.6,0.34249824]
[1747603349566,0.8276,2415.5,2415.1,9.442]
[1747603349762,10.7744,2415.4,2415.1,11.51221]
[1747603350063,10.7744,2415.4,2415.1,9.442]
[1747603351264,13.8324,2415.4,2415.1,9.442]
[1747603351465,13.8324,2415.4,2415.2,0.1293819]
[1747603351764,14.66002,2415.4,2414.9,13.47757]
[1747603351966,13.8324,2415.4,2415.1,2.07021]
[1747603352167,13.8324,2415.4,2415.2,0.12938448]
[1747603352360,13.8324,2415.4,2415.0,0.82773]
[1747603352555,4.3974,2415.4,2415.1,2.19959536]
[1747603352768,9.435,2415.3,2415.2,0.12938443]
[1747603353067,13.8277,2415.3,2415.2,0.12938443]
[1747603353965,4.3927,2415.3,2415.2,0.12938443]
[1747603354166,13.8277,2415.3,2415.2,0.12938443]
[1747603356569,13.8277,2415.3,2415.2,0.12938622]
[1747603356962,14.65535,2415.3,2415.2,0.12938622]
[1747603358469,14.65535,2415.3,2415.2,0.12939313]
[1747603358672,14.65535,2415.3,2414.9,14.66614922]
[1747603358965,0.82769,2415.2,2415.0,0.12939275]
[1747603359165,1.424,2415.1,2414.9,6.46656922]
[1747603359363,2.25174,2415.1,2415.0,0.1293938]
[1747603359764,11.68674,2415.1,2415.0,0.1293938]
[1747603360167,14.74474,2415.1,2415.0,0.1293938]
[1747603360368,13.917,2415.1,2415.0,0.1293938]
[1747603361274,4.482,2415.1,2415.0,3.0273638]
[1747603361466,3.058,2415.1,2415.0,3.0273638]
[1747603361867,3.058,2415.1,2415.0,6.10626997]
[1747603362172,3.058,2415.1,2415.0,6.10625566]
[1747603362370,3.058,2415.1,2415.0,6.10625732]
[1747603362561,3.058,2415.1,2415.0,5.97687617]
[1747603362766,3.058,2415.1,2415.0,6.10625738]
[1747603362965,3.058,2415.1,2415.0,6.10625755]
[1747603363165,3.058,2415.1,2415.0,6.1062576]
[1747603363368,3.058,2415.1,2415.0,6.10607579]
[1747603363569,3.058,2415.1,2415.0,5.27831579]
[1747603363771,3.058,2415.1,2415.0,5.14893442]
[1747603364171,3.058,2415.1,2415.0,6.10607603]
[1747603364674,3.058,2415.1,2415.0,6.10607608]
[1747603364871,3.058,2415.1,2415.0,3.20810597]
[1747603365073,3.058,2415.1,2415.0,1.83520604]
[1747603365287,3.058,2415.1,2415.0,1.49655503]
[1747603365470,3.058,2415.1,2415.0,1.83507682]
[1747603365671,3.058,2415.1,2415.0,1.83507691]
[1747603365871,12.491,2415.1,2415.0,1.83508047]
[1747603366171,12.491,2415.1,2415.0,1.83508068]
[1747603366371,12.491,2415.1,2415.0,1.83508069]
[1747603366675,12.491,2415.1,2415.0,1.83508077]
[1747603366874,12.491,2415.1,2415.0,1.83508076]
[1747603367075,12.491,2415.1,2415.0,1.83508074]
[1747603367267,12.491,2415.1,2415.0,2.66284057]
[1747603367469,12.491,2415.1,2415.0,2.53345502]
[1747603367771,12.491,2415.1,2415.0,1.83507881]
[1747603368073,3.058,2415.1,2415.0,2.66283881]
[1747603368274,12.49,2415.1,2415.0,3.13149502]
[1747603368474,3.058,2415.1,2415.0,3.13149502]
[1747603368664,12.49,2415.1,2415.0,3.26088046]
[1747603368863,12.49,2415.1,2415.0,3.95925502]
[1747603369072,12.49,2415.1,2415.0,4.08864001]
[1747603369277,12.49,2415.1,2415.0,3.26088027]
[1747603369574,3.058,2415.1,2415.0,6.15884817]
[1747603369774,12.49,2415.1,2415.0,6.15884713]
[1747603370073,3.058,2415.1,2415.0,6.1588455]
[1747603370273,0.9474,2415.6,2415.3,0.82764]
[1747603370473,10.8082,2415.5,2415.4,0.33852188]
[1747603371076,13.8652,2415.5,2415.4,0.33852188]
[1747603371272,4.4342,2415.5,2415.4,1.16614188]
[1747603371477,3.058,2415.5,2415.4,3.23635188]
[1747603371974,3.058,2415.5,2415.4,4.73792595]
[1747603373076,3.058,2415.5,2415.4,4.73791274]
[1747603373674,3.058,2415.5,2415.4,4.73791357]
[1747603375478,3.058,2415.5,2415.4,4.73791031]
[1747603377278,10.7939,2416.0,2415.8,0.82747]
[1747603377480,10.7939,2416.0,2415.9,0.12934545]
[1747603377781,10.7939,2416.0,2415.9,0.46786733]
[1747603377981,11.62031,2416.0,2415.9,0.46786733]
[1747603378279,13.8509,2416.0,2415.9,0.46786733]
[1747603379171,4.4239,2416.0,2415.9,1.29531733]
[1747603379476,3.058,2416.0,2415.9,6.57332733]
[1747603379774,0.31363565,2416.7,2415.9,8.67566733]
[1747603379979,0.82708,2417.0,2416.6,0.46761]
[1747603380172,0.3386017,2417.1,2416.7,0.59695545]
[1747603380373,1.4101,2416.9,2416.7,0.46761]
[1747603381176,4.4681,2416.9,2416.7,0.46761]
[1747603381483,5.2952,2416.9,2416.8,0.33852188]
[1747603382078,0.82716,2416.8,2416.3,10.8238]
[1747603382277,10.8351,2416.7,2416.5,0.46761]
[1747603382780,10.8351,2416.7,2416.6,0.46761]
[1747603383081,13.8931,2416.7,2416.6,0.80621572]
[1747603383477,13.8931,2416.7,2416.6,0.46761]
[1747603384179,13.8931,2416.7,2416.3,10.7443]
[1747603384483,13.8931,2416.7,2416.5,0.46761]
[1747603384484,14.72027,2416.7,2416.5,0.46761]
[1747603384678,0.82725,2416.5,2415.9,4.03523]
[1747603384886,3.01959,2416.4,2416.1,0.46761]
[1747603385085,9.423,2416.3,2416.0,0.46761]
[1747603385382,12.00084,2416.2,2416.1,0.33807688]
[1747603385888,0.82742,2416.0,2415.6,12.6308]